[Event "FIDE World Rapid Chess Championship 2022"]
[Site "Chess.com"]
[Date "2022.12.28"]
[Round "13"]
[White "Carlsen, Magnus"]
[Black "Maghsoodloo, Parham"]
[Result "1-0"]
[WhiteElo "2859"]
[BlackElo "2719"]
[ECO "B67"]
[EventDate "2022.??.??"]
[Annotator "rafael"]
[PlyCount "55"]
[Beauty "8248216268328"]
[EventType "rapid"]
[TimeControl "900+10"]

1.e4 c5 2.Nf3 d6 3.d4 cxd4 4.Nxd4 Nf6 5.Nc3 Nc6 {The Classical Variation of the Sicilian is very popular again and, if we think about it, it is one of the most reliable, taking into account the opening principles of chess such as prioritizing development, starting with the knights. That said, following these principles is no guarantee of not getting mated in the Sicilian, as we shall see.} 6.Bg5 {The Richter-Rauzer Variation is the best and most popular option against the Classical Sicilian.} 6...e6 7.Qd2 a6 {This system is the most played in the elite right now, surpassing 7...Be7 followed by 8...0-0, which was played a lot by Kramnik in the '90s.} ( 7...Be7 8.O-O-O O-O ) 8.O-O-O Bd7 {Here White needs to decide whether to play with 9.f4 (the most popular move) or 9.f3, following the English Attack plan. This last option seems to me to be the most dangerous for Black and is Carlsen's choice.} 9.f3 ( 9.f4 Be7 10.Nf3 b5 {Leads to a position with much theory and is currently being discussed at the top level.} ) 9...Nxd4 {This capture is played by almost everyone these days.} 10.Qxd4 Be7 11.Kb1 $1 {[%c_effect b1;square;b1;type;GreatFind;persistent;true] As I always say: you are never far wrong playing Kb1 after long castling. This move is always important sooner or later, so why not start with it $2} 11...b5 ( 11...Qc7 {is the most played move. A recent game followed:} 12.h4 b5 13.Qd2 b4 14.Ne2 a5 15.c4 $5 {[%c_effect c4;square;c4;type;Interesting;persistent;true]} 15...bxc3 ( 15...Qxc4 $2 {[%c_effect c4;square;c4;type;Mistake;persistent;true]} 16.e5 ) 16.Nxc3 Rb8 17.a4 $1 {[%c_effect a4;square;a4;type;GreatFind;persistent;true]} 17...O-O 18.Nb5 {with some pressure for White in Sethuraman-Vidit, 2022 Tata Steel India (Rapid) 2022.} ) 12.h4 Rb8 $6 {[%c_effect b8;square;b8;type;Inaccuracy;persistent;true]} ( 12...Qc7 {Transposes to the game we saw above.} ) 13.g4 b4 14.Ne2 {My impression is that White's attack on the kingside arrives much faster than Black's on the queenside.} 14...a5 15.Ng3 Qc7 {The development of the queen on c7, so natural a few moves ago, is new in this position. A correspondence game followed with 15...0-0.} ( 15...O-O 16.Be3 a4 17.g5 Ne8 18.f4 {White's attack is scary, but in a correspondence game almost everything is defensible and the game ended in a draw. Bauer-Sikorsky, email 2009.} ) 16.Be3 {A thematic move, taking the bishop out of the pawns' way.} 16...Rc8 ( 16...O-O {is probably better, although the position is not pretty after} 17.g5 Ne8 ) 17.Rh2 ( 17.Qd2 {would be the choice of many players.} 17...Bc6 18.g5 Nd7 {Now at least Black manages to place the knight in a decent square. But White is much better anyway.} ) ( 17.Ba6 $1 {[%c_effect a6;square;a6;type;GreatFind;persistent;true] The computer indicates this difficult move as the most accurate, sacrificing the c2-pawn. If Black accepts the gift, then after} 17...Qxc2+ 18.Ka1 Ra8 19.Rc1 Qg2 20.Rhg1 Qh2 21.Bb7 Rb8 22.Qa7 O-O 23.g5 {Black's position collapses.} ) ( 17.g5 $5 {[%c_effect g5;square;g5;type;Interesting;persistent;true] Even this is possible.} 17...Qxc2+ 18.Ka1 e5 19.Qd3 Qxd3 20.Bxd3 Ng8 {White has some monster compensation, but at least the queens are not on the board anymore.} ) 17...d5 {A desperate attempt to complicate the game.} ( 17...O-O 18.g5 Ne8 {is a bit sad, since the knight is misplaced.} ) 18.e5 O-O {This is the idea.} 19.Ba6 $5 {[%c_effect a6;square;a6;type;Interesting;persistent;true] An elegant move.} ( 19.exf6 $6 {[%c_effect f6;square;f6;type;Inaccuracy;persistent;true]} 19...Bxf6 20.Bf4 ( 20.Qd2 $6 {[%c_effect d2;square;d2;type;Inaccuracy;persistent;true]} 20...Qxg3 ) 20...e5 21.Nh5 $1 {[%c_effect h5;square;h5;type;GreatFind;persistent;true]} 21...exd4 22.Nxf6+ gxf6 23.Bxc7 Rxc7 24.Rxd4 {White is better, but this is a dream for Black compared to the game.} ) ( 19.g5 {is also good.} 19...Ne8 ) 19...Ra8 ( 19...Rb8 {is a better option since the rook is better placed here and the capture on f6 is still not winning.} 20.exf6 ( 20.g5 ) ( 20.Bd3 ) 20...Bxf6 21.Bf4 e5 22.Nh5 {Maybe Maghsoodloo was afraid of this move and I can understand him.} 22...exf4 23.Nxf6+ gxf6 {This looks horrible for Black, but it's not losing yet.} ) 20.Bd3 Rfc8 $6 {[%c_effect c8;square;c8;type;Inaccuracy;persistent;true] The rook was needed in the defense of the kingside. To be honest, it's hard to suggest improvements for Black—the position is just bad.} 21.Qf4 $1 {[%c_effect f4;square;f4;type;GreatFind;persistent;true]} 21...Ne8 22.g5 {All the white pieces are ready to attack. The f7-pawn is now also weakened.} 22...Bc5 23.Bxc5 Qxc5 24.h5 ( 24.Nh5 {is also very tempting, followed by the knight sacrifice on f6.} ) 24...Bb5 25.Bxh7+ $1 {[%c_effect h7;square;h7;type;GreatFind;persistent;true] The position is ready for a sacrifice.} 25...Kxh7 26.g6+ fxg6 27.Qf7 {The simplest.} ( 27.hxg6+ Kxg6 28.Ne4 $1 {[%c_effect e4;square;e4;type;GreatFind;persistent;true] is also a nice finish.} 28...dxe4 29.Rg2+ Kh7 30.Qf7 $1 {[%c_effect f7;square;f7;type;GreatFind;persistent;true] The only winning move, but not so difficult to spot.} ) 27...g5 28.h6 {Mate is unavoidable. Congratulations to Carlsen for yet another magnificent performance $1} 1-0

[Event "Speed Chess Championship 2022 - Evento "]
[Site "Chess.com"]
[Date "2022.12.18"]
[Round "4"]
[White "Carlsen, Magnus"]
[Black "Nakamura, Hikaru"]
[Result "0-1"]
[WhiteElo "2859"]
[BlackElo "2768"]
[ECO "E05"]
[EventDate "2022.??.??"]
[Annotator "rafael"]
[PlyCount "72"]
[Beauty "7904622817288"]
[EventType "team-tourn"]
[TimeControl "300+1"]

1.d4 Nf6 2.c4 e6 3.Nf3 d5 4.g3 {The choice of the Catalan Opening shows how seriously Carlsen was taking this match. That was his main opening in the world championship duel against Nepomniachtchi.} 4...Be7 5.Bg2 O-O 6.O-O dxc4 7.Qc2 a6 ( 7...b5 {Nakamura is an expert in this variation, but he decided not to test Carlsen's preparation.} ) 8.a4 Bd7 9.Qxc4 Bc6 10.Bg5 {This is one of the most important positions in the Catalan.} ( 10.Bf4 {is also popular.} ) 10...a5 {A rare move in Nakamura's games. The two most popular alternatives, 10...Bd5 and 10...Nbd7, had already been tried by him.} ( 10...Bd5 ) ( 10...Nbd7 ) 11.Nc3 Nbd7 ( 11...Na6 {Previously the development of the knight on a6 was almost automatic here. I have an old game in this position that brings back good memories.} 12.Bxf6 Bxf6 13.e4 Nb4 14.Rfd1 b6 15.Rd2 Bb7 16.Rad1 c6 {Akesson-Leitao, Cappelle la Grande 2000.} ) 12.Rfd1 h6 13.Bxf6 Nxf6 14.Ne5 Bxg2 15.Kxg2 c6 16.e4 Bb4 ( 16...Qb6 {is quite natural.} 17.Qe2 Rfd8 18.Nc4 Qc7 19.e5 Nd5 20.Ne4 Nb6 {with chances for both sides in Yip-Mendonca, Gelfand Challenge (rapid) 2021.} ) 17.Qe2 Qb6 {The first new move.} ( 17...Qc7 {Nechaeva-Ovod, Ufa 2021.} ) 18.Rac1 ( 18.Rd3 {During the Portuguese broadcast, I suggested this natural move, preparing to double rooks, protecting the d4-pawn. The rook might also be useful on the third rank if White starts an attack with g3-g4. Needless to say, the computer is not impressed, indicating the usual 0.00 evaluation.} ) 18...Rad8 19.Nf3 Rd7 20.Qc2 ( 20.e5 {is a risky plan. After} 20...Nd5 21.Ne4 Ne7 $1 {[%c_effect e7;square;e7;type;GreatFind;persistent;true] Black is solid and ready to attach the d4-pawn with Nf5.} ) 20...Bxc3 $5 {[%c_effect c3;square;c3;type;Interesting;persistent;true] This is a very difficult move for me and I guess for most players. Doubling rooks on the d-file or playing a waiting move seems easier. Instead, Nakamura first parts with the bishop and then undermines White's center. It's usually very difficult to evaluate changes in the positional elements during the middlegame. Supposing this was not home preparation, it shows a deep chess understanding.} 21.bxc3 c5 $1 {[%c_effect c5;square;c5;type;GreatFind;persistent;true]} 22.Rb1 Qc7 23.Qe2 Rfd8 24.Rb5 cxd4 25.cxd4 b6 $1 {[%c_effect b6;square;b6;type;GreatFind;persistent;true] Black is in time to get counterplay by attacking White's e4-pawn.} 26.Rdb1 Qb7 27.d5 $1 {[%c_effect d5;square;d5;type;GreatFind;persistent;true]} ( 27.Rxb6 {Doesn't give any advantage.} 27...Qxe4 ) 27...exd5 28.Rxb6 Qa8 $6 {[%c_effect a8;square;a8;type;Inaccuracy;persistent;true] This is inaccurate due to a tactical idea that is simply impossible to stop during a blitz game.} ( 28...Qc7 $1 {[%c_effect c7;square;c7;type;GreatFind;persistent;true]} 29.e5 Ne4 {And chances are roughly equal.} ) 29.e5 Ne4 30.Ra6 $6 {[%c_effect a6;square;a6;type;Inaccuracy;persistent;true]} ( 30.Nd4 $3 {[%c_effect d4;square;d4;type;Brilliant;persistent;true] This wonderful move gives White the advantage. Of course, centralizing the knight is very natural and good, but what happens if Black plays 30...Nc3 $2 Let's see:} 30...Nc3 $6 {[%c_effect c3;square;c3;type;Inaccuracy;persistent;true]} 31.Qg4 $1 {[%c_effect g4;square;g4;type;GreatFind;persistent;true]} 31...Nxb1 32.Nf5 $1 {[%c_effect f5;square;f5;type;GreatFind;persistent;true] This is the point. Surprisingly Black cannot defend the combined attack of queen, rook, knight, and pawn.} 32...d4+ 33.Kh3 g6 34.Nxh6+ Kf8 ( 34...Kg7 35.Nf5+ Kf8 36.Qh4 gxf5 37.Rh6 $1 {[%c_effect h6;square;h6;type;GreatFind;persistent;true] Mate is unavoidable.} ) 35.Rf6 $3 {[%c_effect f6;square;f6;type;Brilliant;persistent;true] White brings the rook to the attack, threatening 36.Qxg6. A possible finish is:} 35...Ke8 36.Nxf7 $1 {[%c_effect f7;square;f7;type;GreatFind;persistent;true]} 36...Rxf7 37.Qe6+ Re7 38.Qg8+ Kd7 39.Rd6+ Kc7 40.Qc4+ Kb7 41.Qc6+ Ka7 42.Qb6# ) 30...Qc8 31.Rbb6 Nc5 $1 {[%c_effect c5;square;c5;type;GreatFind;persistent;true] A pawn sacrifice and a very good practical decision.} ( 31...Rc7 32.Nd4 Ng5 {This is the computer's suggestion and it also seems OK for Black.} ) 32.Rxa5 d4 {The pawn starts rolling and the position looks scary for White.} 33.Qc4 ( 33.Rd6 {is a good alternative.} 33...d3 ( 33...Rxd6 $6 {[%c_effect d6;square;d6;type;Inaccuracy;persistent;true]} 34.exd6 Rxd6 $6 {[%c_effect d6;square;d6;type;Inaccuracy;persistent;true]} 35.Qc4 ) 34.Qe3 Nb7 35.Rxd7 Rxd7 {with a complicated position, but Black has enough compensation for a draw.} ) 33...Rc7 34.Qb4 Nd3 $1 {[%c_effect d3;square;d3;type;GreatFind;persistent;true] Now Carlsen has just one way to escape.} 35.Qb5 $2 {[%c_effect b5;square;b5;type;Mistake;persistent;true] This move loses immediately.} ( 35.Qd2 $1 {[%c_effect d2;square;d2;type;GreatFind;persistent;true]} 35...Nxf2 $1 {[%c_effect f2;square;f2;type;GreatFind;persistent;true] The world champion certainly saw this move and didn't like his position. But the defensive resources are not exhausted.} 36.Qxf2 Rc2 37.Nd2 Qc3 38.Rd5 $3 {[%c_effect d5;square;d5;type;Brilliant;persistent;true] The only move.} 38...Rxd2 ( 38...Rxd5 $2 {[%c_effect d5;square;d5;type;Mistake;persistent;true]} 39.Rb8+ Kh7 $2 {[%c_effect h7;square;h7;type;Mistake;persistent;true]} 40.Qf5+ g6 41.Qxf7# ) 39.Rxd8+ Kh7 40.Rbd6 Rxf2+ 41.Kxf2 {And the game ends in a draw.} ) 35...Nf4+ $1 {[%c_effect f4;square;f4;type;GreatFind;persistent;true] Suddenly Nakamura has a mating attack.} 36.Kh1 ( 36.gxf4 Qg4+ 37.Kf1 Qxf3 38.Qb1 d3 {Threatening mate.} 39.Kg1 d2 {and the d-pawn decides the game.} ) 36...Qh3 {The quickest way to decide the game. Congratulations to both players for this incredible match, especially to Nakamura for achieving something that seemed impossible. It was an unforgettable Sunday.} 0-1

[Event "Tata Steel Chess Masters 2023"]
[Site "Chess.com"]
[Date "2023.01.15"]
[Round "2"]
[White "Giri, Anish"]
[Black "Gukesh, D."]
[Result "1-0"]
[WhiteElo "2764"]
[BlackElo "2725"]
[ECO "D38"]
[EventDate "2023.??.??"]
[Annotator "Rafael Leitao"]
[PlyCount "53"]
[Beauty "8246895088684"]
[EventType "schev"]
[EventRounds "4"]
[TimeControl "6000+30"]

1.d4 Nf6 2.c4 e6 3.Nf3 d5 4.Nc3 Bb4 5.Bg5 h6 6.Bxf6 Qxf6 7.e3 O-O 8.Rc1 dxc4 9.Bxc4 c5 10.O-O {This is a popular line of the Ragozin Defense, played in hundreds of games, including the highest level. As is often the case, the white player needs to show a new idea in these variations, as the known paths lead to equality. That's exactly what Giri will do in this game.} 10...cxd4 11.Ne4 ( 11.Nxd4 {is also possible, but White has been unable to prove an advantage after} 11...Bd7 ) 11...Qe7 12.a3 Ba5 13.exd4 {This rare capture was tried in two high-profile games in 2022. We have a position on the board with one of the most important structures in chess, the isolated queen's pawn. Every good chess player needs to know how to play this type of position. Roughly summarized, White has more space and more active pieces, but needs to play quickly to build up some attack before Black finishes development.} ( 13.Qxd4 {is more popular.} ) 13...Rd8 14.Rc2 $5 {A very interesting theoretical novelty. White intends to develop the rook on the second rank, either on d2 or e2. These are the most dangerous novelties, the ones that don't appear in a tactical, forced variation, moves that aren't the computer's first choices. The idea will work as a charm.} ( 14.Ba2 {was played in the two games mentioned previously.} 14...Bd7 15.b4 Bb6 16.Re1 Bc6 17.Qc2 Na6 $1 ( 17...a5 18.h4 Bxe4 19.Rxe4 Nd7 {with a complicated game in Mamedyarov-Dominguez Perez, Berlin 2022.} ) 18.h4 Nc7 {and Black later won in Mamedyarov-Erigaisi, FTX Road to Miami 2022.} ) 14...Bd7 {The question is how Black should finish development. Other attempts are also possible.} ( 14...Na6 {This weird move has the idea of getting the knight to d5 via c7, but it's not the most accurate.} 15.Ne5 Nc7 16.Be2 $1 {with the idea of playing Bh5, with unpleasant pressure.} ) ( 14...Nc6 {This is very natural.} 15.b4 Bb6 16.Rd2 {Here we see one of the benefits of White's plan. The rook protects the d-pawn and is ready to support its advance.} 16...Qc7 $1 {This is an important move to fight for equality.} ( 16...Bd7 {is dubious because the queen is poorly placed on e7.} 17.Re1 {With advantage for White.} ) ) ( 14...Nd7 {I think this is the best move. The idea is to send the knight to f6 and against 15.d5 the computer helps us find the right way.} 15.d5 ( 15.Re2 Nf6 {Black has nothing to worry about.} ) 15...exd5 16.Qxd5 Nb6 $1 17.Qxa5 Qxe4 18.Bb3 Be6 {with equality.} ) 15.Re2 Bc6 16.Qc2 {Suddenly the position becomes dangerous for Black. Themes with the knight jumping to g5 begin to appear. White might even support this plan by playing h2-h4. The x-ray of the rook with the queen on e7 is also cause for concern.} 16...Bb6 $6 {The first clear mistake.} ( 16...Nd7 $2 {This move loses.} 17.d5 $1 exd5 18.Neg5 ) ( 16...Bxe4 {This is the best. It's necessary to remove the menacing knight and develop as soon as possible.} 17.Rxe4 {The most dangerous.} ( 17.Qxe4 Nc6 18.Bb5 Rac8 19.Rc2 Bb6 20.Bxc6 Rxc6 21.Rxc6 bxc6 {and Black is close to equality.} ) 17...Nd7 18.d5 e5 {White's position still looks threatening, but objectively Black manages to hold the balance.} ( 18...Nf6 $2 19.dxe6 $1 Nxe4 20.Qxe4 {with a winning attack.} ) ) 17.Rfe1 {Now White's pieces are ready for a decisive assault and extreme measures are necessary.} 17...Kh8 $2 {The losing move. Gukesh wants to remove the king from the unpleasant a2-g8 diagonal, but he has no time for that.} ( 17...Bd5 $1 {Black has to exchange the dangerous opponent's bishop.} 18.Bxd5 Rxd5 19.Nc3 {This is the problem. White will push the d-pawn forward.} 19...Rd6 $1 20.d5 Nd7 {It's clear that White is better, but the position is not winning and Black won't be mated anytime soon.} ) 18.Neg5 $3 {Giri executes a brilliant combination to finish the game in style.} 18...hxg5 19.Rxe6 $1 {The natural continuation of the previous move. When analyzing a sacrifice, it's usually useful to look at the relative strength of the pieces left on the board, that is, what they are actually doing. Notice that Black's rook and knight haven't moved yet. It's emblematic that a rook and a knight are precisely the pieces sacrificed by Giri. Of course it's always easier to come up with theories to justify a combination when it's not our pieces that are being sacrificed.} 19...fxe6 20.Rxe6 {If the queen moves then the g5-pawn is captured and the attack is irresistible.} 20...Qxe6 ( 20...Qf7 21.Nxg5 Qh5 22.Rh6+ $1 {The cleanest.} 22...Qxh6 ( 22...gxh6 23.Qh7# ) 23.Nf7+ Kg8 24.Nxh6+ Kh8 ( 24...Kf8 25.Qf5+ Ke7 26.Qe6+ Kf8 27.Qf7# ) 25.Bg8 $1 {This one hurts.} 25...Rxg8 26.Nf7# ) 21.Bxe6 Bxf3 22.Qf5 $1 {The queen and bishop are enough to create a mating attack. 23.Qh3 is threatened.} 22...Be4 {A desperate attempt to slow down the attack.} 23.Qxe4 Rxd4 24.Qf3 $1 {The only move, but it’s more than enough.} 24...g4 25.Qf8+ Kh7 26.Bf5+ Kh6 ( 26...g6 27.Qf7+ Kh8 28.Qf6+ ( 28.Bc2 {is also easily winning.} ) 28...Kg8 29.Qxg6+ Kf8 30.Qf6+ Ke8 31.g3 {The attack continues and Black still cannot move the queenside.} ) 27.Bc2 {27.Qh8 is threatened and the queenside is paralyzed. Gukesh decided to resign. A brilliant game by Giri.} 1-0